bitfinex-derivatives/quotes_ETHF0:USTF0_20241230
["timestamp","ask_amount","ask_price","bid_price","bid_amount"]
[1735528271993,1.94515,3418.6,3417.9,3.2078]
[1735528272188,1.94515,3418.6,3418.2,0.29317]
[1735528272989,1.652,3418.6,3417.9,3.2078]
[1735528273189,0.29315,3418.5,3418.1,0.29318]
[1735528273692,3.50097,3418.3,3417.9,0.2932]
[1735528273897,3.2078,3418.3,3417.5,3.2078]
[1735528274098,3.2078,3418.3,3418.0,0.29319]
[1735528275195,3.2078,3418.3,3417.5,3.2078]
[1735528275393,3.2078,3418.3,3417.9,0.2932]
[1735528275598,3.2078,3418.3,3418.0,0.29319]
[1735528276302,3.2078,3418.3,3417.5,3.2078]
[1735528276601,3.2078,3418.3,3418.0,0.29319]
[1735528278000,3.2078,3418.3,3418.1,0.29318]
[1735528278304,3.2078,3418.3,3418.2,0.29318]
[1735528278991,3.2078,3418.3,3417.5,3.43807982]
[1735528279196,3.2078,3418.3,3418.2,0.29318]
[1735528280100,2.29950159,3418.6,3418.2,5.55046075]
[1735528280298,2.29950159,3418.6,3418.5,0.29315]
[1735528280698,2.29950159,3418.6,3418.5,41.09315]
[1735528281099,0.5493,3419.0,3418.5,41.09315]
[1735528281100,0.5493,3419.0,3418.9,0.29312]
[1735528286708,2.84880159,3419.0,3418.9,0.29312]
[1735528289414,0.5493,3419.0,3418.9,0.29312]
[1735528290218,3.99977662,3419.0,3418.9,0.29312]
[1735528291518,4.43955296,3419.0,3418.9,0.29312]
[1735528295817,0.98907634,3419.0,3418.9,0.29312]
[1735528296520,0.98907634,3419.0,3418.8,0.29312]
[1735528296913,0.98907634,3419.0,3418.3,0.73579134]
[1735528297225,0.98907634,3419.0,3418.9,0.29312]
[1735528297424,5.59242946,3419.0,3418.9,0.29312]
[1735528300932,11.77694481,3419.0,3418.9,0.29312]
[1735528302424,0.5493,3419.0,3418.9,0.29312]
[1735528304825,0.43977634,3419.0,3418.9,0.29312]
[1735528306126,2.30180105,3419.0,3418.9,0.29312]
[1735528306631,2.30180105,3419.0,3418.6,0.96556679]
[1735528307230,6.66050158,3419.1,3419.0,0.29311]
[1735528308530,7.10025515,3419.1,3419.0,0.29311]
[1735528309528,3.64755357,3419.1,3419.0,0.29311]
[1735528310433,0.04945508,3419.1,3419.0,0.29311]
[1735528310938,4.6042143,3419.4,3418.8,2.34266075]
[1735528311134,4.6042143,3419.4,3419.3,0.29308]
[1735528312532,3.45195674,3419.4,3419.3,0.29308]
[1735528313940,7.8120143,3419.5,3419.4,0.29307]
[1735528315434,7.8120143,3419.5,3419.3,0.29308]
[1735528315641,7.8120143,3419.5,3418.6,0.23272679]
[1735528315832,7.8120143,3419.5,3419.2,0.29309]
[1735528316536,4.6042143,3419.3,3419.2,0.29309]
[1735528317138,4.6042143,3419.3,3419.1,0.2931]
[1735528317329,4.6042143,3419.3,3418.6,40.8]
[1735528317530,4.6042143,3419.3,3419.1,0.2931]
[1735528318141,4.6042143,3419.3,3418.6,40.8]
[1735528318331,4.6042143,3419.3,3419.2,0.29309]
[1735528320335,4.6042143,3419.3,3418.6,40.8]
[1735528320535,4.6042143,3419.3,3419.1,0.29309]
[1735528321037,4.6042143,3419.3,3418.6,40.8]
[1735528321238,4.6042143,3419.3,3419.2,0.29309]
[1735528321839,8.96328743,3419.5,3418.6,41.53286]
[1735528321840,2.30228941,3418.9,3418.6,41.53286]
[1735528322136,2.30228941,3418.9,3418.8,0.29313]
[1735528322939,2.30228941,3419.1,3419.0,0.29311]
[1735528323446,2.83158941,3419.1,3419.0,0.29311]
[1735528324344,5.13449104,3419.1,3419.0,0.29311]
[1735528326448,8.34229104,3419.1,3419.0,0.29311]
[1735528327845,3.7371,3419.1,3419.0,0.29311]
[1735528328943,0.5293,3419.1,3419.0,0.29311]
[1735528329345,19.88904823,3419.4,3418.8,2.34266075]
[1735528329546,19.88904823,3419.4,3419.3,0.29308]
[1735528330148,5.01463613,3419.4,3419.3,0.29308]
[1735528330354,10.77728357,3419.4,3419.3,0.29308]
[1735528331748,4.60933005,3419.4,3419.3,0.29308]
[1735528332852,3.49919758,3419.4,3419.3,0.29308]
[1735528333751,2.19059758,3419.4,3419.3,0.29308]
[1735528333954,1.67739758,3419.4,3419.3,0.29308]
[1735528334357,2.30370544,3419.4,3419.3,0.29308]
[1735528334555,2.30370544,3419.4,3419.3,0.53088774]
[1735528335852,3.45555816,3419.6,3419.3,0.53088774]
[1735528335853,2.30370544,3419.5,3419.4,0.29307]
[1735528338253,2.30370544,3419.6,3419.3,0.23780774]
[1735528338553,0.5573,3419.5,3419.4,0.2931]
[1735528342255,4.01285816,3419.5,3419.4,0.2931]
[1735528343257,0.5573,3419.5,3419.4,0.2931]
[1735528347155,0.5573,3419.5,3419.2,0.29312]
[1735528347156,3.7651,3419.5,3419.2,0.29312]
[1735528347357,0.5312,3419.4,3419.2,0.29312]
[1735528347754,0.5312,3419.4,3419.0,4.55357877]
[1735528347755,0.5312,3419.4,3419.3,0.29311]
[1735528348752,11.6586466,3419.4,3419.3,0.29311]
[1735528350359,11.6586466,3419.4,3419.2,0.29311]
[1735528350562,0.5738,3419.3,3419.2,0.29312]
[1735528350949,0.5738,3419.3,3418.6,42.2657]
[1735528351154,0.5738,3419.3,3419.0,0.29313]
[1735528351362,0.5738,3419.3,3419.1,0.29312]
[1735528352062,0.43976071,3419.2,3418.7,0.29316]
[1735528352258,0.43976071,3419.2,3418.9,0.29314]
[1735528352457,3.2078,3419.0,3418.9,0.29314]
[1735528354356,3.2078,3419.0,3418.6,40.8]
[1735528354562,3.2078,3419.0,3418.3,0.00288134]
[1735528354563,3.39446075,3418.9,3418.3,0.00288134]
[1735528354861,3.2078,3418.6,3418.4,0.29319]
[1735528355065,0.5318,3418.5,3418.4,0.29319]
[1735528355757,0.5318,3418.5,3418.1,4.78582946]
[1735528355960,0.525,3418.4,3418.2,0.2932]
[1735528356165,0.5268,3418.3,3418.2,0.2932]
[1735528356563,0.5268,3418.3,3417.7,3.2078]
[1735528356762,0.5268,3418.3,3418.2,0.29321]
[1735528357163,0.5268,3418.3,3418.1,0.29321]
[1735528357361,0.5268,3418.3,3417.7,3.44541281]
[1735528357565,0.5268,3418.3,3418.2,0.29321]
[1735528357775,0.52427741,3418.3,3418.2,0.29321]
[1735528359176,3.97519568,3418.3,3418.2,0.29321]
[1735528360179,0.52427741,3418.3,3418.2,0.29321]
[1735528362881,0.52427741,3418.3,3418.2,41.09321]
[1735528363276,0.52427741,3418.3,3418.2,0.29321]
[1735528363681,2.8238204,3418.4,3417.9,2.34266075]
[1735528363879,2.2988204,3418.4,3418.3,0.2932]
[1735528364577,2.2988204,3418.4,3418.2,2.34266075]
[1735528364578,3.7396,3418.5,3418.4,0.29319]
[1735528366980,3.7396,3418.5,3418.3,0.2932]
[1735528367182,0.5244,3418.4,3418.3,0.2932]
[1735528367680,0.5244,3418.4,3417.9,0.23939928]
[1735528367883,0.5233,3418.3,3418.2,0.29321]
[1735528373686,0.5233,3418.3,3417.7,3.43868107]
[1735528373981,0.5233,3418.3,3417.9,0.29323]
[1735528375183,0.5233,3418.3,3417.7,3.43868107]
[1735528375385,0.5233,3418.3,3418.0,0.29322]
[1735528375581,0.5233,3418.3,3418.1,0.29321]
[1735528376984,0.5233,3418.3,3417.9,2.34266075]
[1735528377194,2.8232204,3418.4,3418.3,0.2932]
[1735528377678,2.8232204,3418.4,3418.3,41.0932]
[1735528377883,2.8232204,3418.4,3418.3,0.2932]
[1735528378085,0.5244,3418.4,3418.3,0.2932]
[1735528380292,3.7396,3418.5,3417.9,43.14266075]
[1735528380494,3.7396,3418.5,3418.4,0.29319]
[1735528381292,3.2078,3418.5,3418.4,0.29319]
[1735528381497,2.2988204,3418.6,3418.5,0.29318]
[1735528381692,2.2988204,3418.6,3418.5,5.84364075]
[1735528381894,2.2988204,3418.8,3418.5,5.55046075]
[1735528382093,2.2988204,3418.8,3418.7,0.29316]
[1735528383297,2.2988204,3419.2,3418.5,5.55046075]
[1735528383486,2.2988204,3419.2,3419.1,0.29313]
[1735528384492,3.99171827,3419.3,3418.5,6.51603333]
[1735528384697,3.99171827,3419.3,3419.2,0.29312]
[1735528385198,3.99171827,3419.3,3418.5,5.78309333]
[1735528385397,3.99171827,3419.3,3418.9,0.29314]
[1735528385697,3.2078,3419.0,3418.9,0.29314]
[1735528386998,5.50535501,3419.0,3418.9,0.29314]
[1735528387796,6.60445501,3419.0,3418.9,0.29314]
[1735528388696,4.3069,3419.0,3418.9,0.29314]
[1735528388998,3.7596,3419.0,3418.9,0.29314]
[1735528389298,0.5518,3419.0,3418.9,0.29314]
[1735528390095,0.5518,3419.0,3418.9,0.53062258]
[1735528390794,2.29755501,3419.2,3418.9,0.23748258]
[1735528390999,2.29755501,3419.2,3419.1,0.29313]
[1735528392796,3.99171827,3419.3,3418.6,3.73725726]
[1735528392995,3.99171827,3419.3,3419.1,0.29312]
[1735528394098,3.45091827,3419.2,3419.1,0.29312]
[1735528395302,0.4397636,3419.2,3419.1,0.29313]
[1735528397305,4.59678841,3419.2,3419.1,0.29313]
[1735528398705,0.4397636,3419.2,3419.1,0.29313]
[1735528399105,0.4397636,3419.2,3419.1,2.63579075]
[1735528401009,2.30054544,3419.3,3419.2,0.29312]
[1735528402909,6.03264544,3419.4,3419.3,0.29311]
[1735528404011,3.7321,3419.4,3419.3,0.29311]
[1735528405611,0.5243,3419.4,3419.3,0.29311]
[1735528405811,3.7321,3419.4,3419.3,0.29311]
[1735528406205,6.03160523,3419.4,3419.3,0.29311]
[1735528407409,7.18291817,3419.4,3419.3,0.29311]
[1735528407609,7.18291817,3419.4,3419.2,0.29312]
[1735528408712,3.97511817,3419.4,3419.2,0.29312]
[1735528408907,7.09838344,3419.3,3419.2,0.29312]
[1735528409511,7.09838344,3419.3,3418.8,0.23056416]
[1735528409811,0.5333,3419.2,3419.0,0.29313]
[1735528410013,0.5327,3419.1,3419.0,0.29313]
[1735528410612,0.5327,3419.1,3418.5,44.32166075]
[1735528410815,0.5327,3419.1,3419.0,0.29314]
[1735528411911,3.98351817,3419.1,3419.0,0.29314]
[1735528412811,3.98351817,3419.1,3418.5,41.02836496]
[1735528413010,0.5327,3419.1,3418.5,0.29317]
[1735528413315,3.50095,3418.9,3418.5,0.29317]
[1735528413618,0.5441,3418.8,3418.3,40.8]
[1735528413818,0.5441,3418.8,3418.6,0.29317]
[1735528414018,0.5322,3418.7,3418.6,0.29317]
[1735528415211,2.83295194,3418.7,3418.6,0.29317]
[1735528416417,0.5322,3418.7,3418.6,0.29317]
[1735528416618,3.74,3418.7,3418.6,0.29317]
[1735528418912,7.19081817,3418.7,3418.6,0.29317]
[1735528420310,4.17983119,3418.7,3418.6,0.29317]
[1735528420920,4.17983119,3418.7,3418.2,0.23876383]
[1735528421119,4.17983119,3418.7,3418.0,3.52166075]
[1735528421120,4.17983119,3418.7,3418.3,0.29319]
[1735528422717,2.30235786,3418.4,3418.3,0.29319]
[1735528423115,2.84165786,3418.4,3418.3,0.29319]
[1735528424023,0.5393,3418.4,3418.3,0.29319]
[1735528426319,2.84250759,3418.4,3418.3,1.32253979]
[1735528427220,2.84250759,3418.4,3418.3,42.12253979]
[1735528427421,0.5393,3418.4,3418.3,42.12253979]
[1735528428422,2.84250759,3418.4,3418.3,42.12253979]
[1735528428821,2.84250759,3418.4,3418.3,1.32253979]
[1735528429931,2.84250759,3418.4,3418.3,0.29319]
[1735528430834,3.99283679,3418.4,3418.3,0.29319]
[1735528436145,4.43269781,3418.4,3418.3,0.29319]
[1735528437742,4.43269781,3418.4,3418.3,1.32253979]
[1735528438640,2.84159954,3418.4,3418.3,1.32253979]
[1735528439143,2.30229954,3418.4,3418.3,0.29319]
[1735528439448,2.30229954,3418.4,3418.3,1.32253979]
[1735528439449,2.82779954,3418.4,3418.3,1.32253979]
[1735528440141,0.5255,3418.4,3418.3,1.32253979]
[1735528440540,0.5255,3418.4,3418.3,0.29319]
[1735528441639,4.41890396,3418.4,3418.3,0.29319]
[1735528442752,0.96536717,3418.4,3418.3,0.29319]
[1735528443839,0.5255,3418.4,3418.3,0.29319]
[1735528444748,4.41848279,3418.4,3418.3,0.29319]
[1735528451850,0.96536717,3418.4,3418.3,0.29319]
[1735528453150,5.12228841,3418.4,3418.3,0.29319]
[1735528454253,5.56215558,3418.4,3418.3,0.29319]
[1735528455755,0.96536717,3418.4,3418.3,0.29319]
[1735528456752,0.5255,3418.4,3418.3,0.29319]
[1735528457858,0.96536717,3418.4,3418.3,0.29319]
[1735528459050,5.85472215,3418.4,3418.3,0.29319]
[1735528464058,11.61736959,3418.4,3418.3,0.29319]
[1735528465155,5.85472215,3418.4,3418.3,0.29319]
[1735528474063,5.85472215,3418.4,3418.1,4.55357877]
[1735528474262,0.5229,3418.3,3418.2,0.29321]
[1735528475461,0.96276717,3418.3,3418.2,0.29321]
[1735528476559,0.96276717,3418.3,3418.1,4.55357877]
[1735528476765,0.5557,3418.2,3418.1,4.84678877]
[1735528476956,0.5557,3418.2,3418.1,0.29321]
[1735528477562,0.5557,3418.2,3418.0,4.55357877]
[1735528478367,11.62117405,3418.2,3417.9,4.84680877]
[1735528479667,11.06547405,3418.1,3417.9,0.29323]
[1735528479866,11.06547405,3418.1,3418.0,0.29322]
[1735528480962,5.05512144,3418.1,3418.0,0.29322]
[1735528481773,5.05512144,3418.1,3418.0,1.32256979]
[1735528482270,4.61525427,3418.1,3418.0,42.12256979]
[1735528482766,4.61525427,3418.1,3418.0,41.53792]
[1735528482972,4.61525427,3418.1,3418.0,0.29322]
[1735528483664,5.62512144,3418.2,3418.1,0.29321]
[1735528484670,1.00986717,3418.2,3418.1,0.29321]
[1735528485868,8.78542457,3418.3,3418.1,4.55357877]
[1735528486074,8.78542457,3418.3,3418.2,1.32255979]
[1735528487175,9.31702457,3418.3,3418.2,1.32255979]
[1735528487975,9.31702457,3418.3,3418.2,5.87613856]
[1735528489779,6.10922457,3418.3,3418.2,5.87613856]
[1735528490775,6.10922457,3418.3,3418.2,1.32255979]
[1735528492778,6.10922457,3418.3,3418.2,0.29321]
[1735528494990,1.49436717,3418.3,3418.2,0.29321]
[1735528496282,1.0545,3418.3,3418.2,0.29321]
[1735528497487,1.0545,3418.3,3418.1,4.55357877]
[1735528497696,1.49436717,3418.3,3418.1,4.84678877]
[1735528498286,1.49436717,3418.3,3418.2,0.29321]
[1735528498890,6.31228849,3418.3,3418.0,4.55357877]
[1735528499090,6.31228849,3418.3,3418.1,0.29321]
[1735528500289,6.31228849,3418.3,3418.2,0.29321]
[1735528500494,1.0545,3418.3,3418.2,0.29321]
[1735528501584,1.0545,3418.3,3418.2,1.32255979]
[1735528501992,1.0545,3418.3,3418.2,0.29321]
[1735528503993,1.49436093,3418.3,3418.2,0.29321]
[1735528505086,6.31224414,3418.3,3418.2,0.29321]
[1735528506598,12.07489158,3418.3,3418.2,0.29321]
[1735528507999,12.07489158,3418.3,3418.0,5.58292856]
[1735528508198,6.109244,3418.3,3418.1,4.55357877]
[1735528509498,4.61488307,3418.2,3418.0,4.84679877]
[1735528509997,4.61488307,3418.2,3418.0,4.55357877]
[1735528510896,4.61488307,3418.1,3418.0,0.29322]
[1735528512201,10.57464318,3418.1,3418.0,0.29322]
[1735528513400,5.76264744,3418.1,3418.0,0.29322]
[1735528514796,11.01450411,3418.2,3418.0,0.29322]
[1735528515697,25.13900155,3421.0,3419.4,4.919]
[1735528515900,25.13900155,3421.0,3418.1,20.43901161]
[1735528515901,10.9105785,3420.3,3420.2,3.50083]
[1735528516096,0.18628495,3420.3,3420.2,5.70717979]
[1735528516394,41.97445242,3421.0,3420.2,5.70717979]
[1735528516395,41.97445242,3421.0,3420.9,0.29297]
[1735528516600,41.97445242,3421.0,3420.9,3.50077]
[1735528516802,41.97445242,3421.0,3420.9,4.69108712]
[1735528517302,1.02934979,3421.9,3421.5,0.29292]
[1735528517503,1.02934979,3421.9,3421.6,0.29291]
[1735528517800,1.02934979,3421.9,3421.5,3.2078]
[1735528517801,2.9248,3421.7,3421.5,3.2078]
[1735528518098,5.44459899,3421.8,3421.5,3.2078]
[1735528518300,2.9248,3421.6,3421.5,3.2078]
[1735528518496,2.9248,3421.6,3421.5,3.50072]
[1735528520101,2.9248,3421.6,3421.5,8.05489005]
[1735528520404,0.28803364,3421.6,3421.5,8.05489005]
[1735528520907,0.28803364,3421.6,3421.5,3.50072]
[1735528522104,1.53022899,3422.5,3421.5,5.54553603]
[1735528522295,0.5358,3424.5,3424.4,0.29267]
[1735528522499,2.33773603,3425.5,3424.2,2.33773603]
[1735528522500,3.2078,3425.3,3424.2,2.33773603]
[1735528522700,3.2078,3425.3,3424.8,0.29264]
[1735528523003,8.2078,3425.3,3425.0,0.29262]
[1735528523201,1.23760899,3425.2,3425.0,0.29262]
[1735528523396,3.2078,3425.3,3424.5,3.2078]
[1735528523603,0.94498899,3425.2,3424.5,3.2078]
[1735528523806,0.94498899,3425.2,3425.0,0.29262]
[1735528524198,3.2078,3425.3,3425.0,0.29262]
[1735528524599,3.2078,3425.3,3424.9,0.29263]
[1735528524800,0.94498899,3425.2,3424.5,3.2078]
[1735528525001,0.94498899,3425.2,3424.6,0.29265]
[1735528525202,5.94498899,3425.2,3424.6,0.29265]
[1735528525401,5.0,3425.2,3424.6,0.29265]
[1735528525610,0.29263,3425.0,3424.5,3.2078]
[1735528525804,3.2078,3424.7,3424.2,0.29269]
[1735528525996,3.2078,3424.7,3423.9,3.2078]
[1735528526202,0.94498899,3424.6,3424.3,0.29268]
[1735528526403,3.2078,3424.7,3424.2,0.29269]
[1735528526709,0.94498899,3424.6,3424.2,0.29269]
[1735528527007,0.94498899,3424.6,3423.9,3.2078]
[1735528527207,0.94498899,3424.6,3424.1,0.2927]
[1735528527902,3.2078,3424.2,3423.5,5.54553603]
[1735528528103,3.50049,3424.2,3423.6,0.29274]
[1735528528303,3.50049,3424.2,3422.9,2.33773603]
[1735528528304,3.2078,3423.7,3422.9,2.33773603]
[1735528528508,3.2078,3423.3,3422.9,0.2928]
[1735528528708,3.2078,3423.3,3422.7,0.29281]
[1735528528914,3.2078,3423.3,3422.6,2.33773603]
[1735528529207,0.94498899,3423.2,3422.5,3.2078]
[1735528529407,0.94498899,3423.2,3422.5,3.50063]
[1735528529601,0.94498899,3423.2,3422.5,3.2078]
[1735528529798,1.23776899,3423.2,3422.5,3.2078]
[1735528530007,3.2078,3422.9,3422.4,0.29285]
[1735528530206,0.94498899,3422.8,3422.4,0.29285]
[1735528530509,0.94498899,3422.8,3422.1,3.2078]
[1735528530707,3.2078,3422.9,3422.1,3.2078]
[1735528530708,3.2078,3422.9,3422.2,0.29286]
[1735528530903,3.2078,3422.4,3422.1,0.29287]
[1735528531107,3.2078,3422.4,3422.0,2.63061603]
[1735528531711,3.2078,3422.4,3422.0,2.33773603]
[1735528532209,3.2078,3422.4,3421.9,0.29289]
[1735528532511,0.94498899,3422.3,3421.6,6.29458519]
[1735528532704,0.94498899,3422.3,3421.6,3.2078]
[1735528533206,3.2078,3422.5,3421.6,3.2078]
[1735528533412,0.29285,3422.4,3421.6,3.50071]
[1735528533806,5.0,3422.4,3421.6,3.2078]
[1735528534211,0.29287,3422.2,3421.6,3.2078]
[1735528534610,0.29285,3422.3,3421.6,3.2078]
[1735528534808,0.29285,3422.3,3421.6,3.50071]
[1735528535210,5.0,3422.3,3421.6,3.2078]
[1735528535419,3.2078,3421.9,3421.2,3.50075]
[1735528535715,3.50069,3421.9,3421.2,3.50074]
[1735528536817,3.2078,3421.9,3421.3,0.29294]
[1735528537017,3.2078,3422.3,3421.9,0.29288]
[1735528537315,3.2078,3422.3,3421.7,3.2078]
[1735528537316,3.2078,3422.3,3422.1,0.29287]
[1735528537507,0.22807412,3424.0,3422.2,3.5006]
[1735528537708,0.542,3424.8,3424.7,0.29265]
[1735528537914,0.5349,3425.0,3424.5,2.79387519]
[1735528538106,0.5349,3425.0,3424.7,0.29264]
[1735528538311,0.5349,3425.0,3424.5,2.79387519]
[1735528538613,0.29257,3425.7,3424.7,3.2078]
[1735528538812,0.29257,3425.7,3425.1,3.50041]
[1735528539015,4.4068,3425.9,3425.1,3.50041]
[1735528539016,4.4068,3425.9,3425.1,3.2078]
[1735528539313,0.29256,3425.7,3425.2,0.2926]
[1735528539912,4.4068,3425.9,3425.2,0.2926]
[1735528540217,4.4068,3425.9,3425.1,3.2078]
[1735528540421,0.29258,3425.6,3425.1,3.50041]
[1735528541219,0.29258,3425.5,3425.1,3.2078]
[1735528541413,4.4068,3425.9,3425.1,3.2078]
[1735528541718,0.29259,3425.5,3425.1,3.50041]
[1735528541916,0.29259,3425.5,3425.1,3.2078]
[1735528542220,0.29259,3425.5,3423.7,6.00167519]
[1735528542221,3.2078,3425.2,3423.7,6.00167519]
[1735528542413,0.29266,3424.6,3424.1,3.2078]
[1735528542608,0.29267,3424.5,3424.1,3.2078]
[1735528542811,0.29268,3424.4,3424.1,3.2078]
[1735528543019,3.2078,3424.7,3424.1,3.2078]
[1735528543317,8.2078,3424.7,3424.1,3.2078]
[1735528543619,3.17875729,3424.7,3424.1,3.2078]
[1735528543810,0.29269,3424.2,3424.1,3.2078]
[1735528544413,0.2927,3424.1,3423.7,3.50053]
[1735528544616,0.2927,3424.1,3423.7,3.2078]
[1735528544916,6.00167519,3424.7,3423.7,5.02904271]
[1735528545110,0.2927,3424.1,3423.7,5.02904271]
[1735528545610,6.00167519,3424.7,3423.7,5.02904271]
[1735528545812,11.00167519,3424.7,3423.7,5.02904271]
[1735528546011,0.29271,3424.0,3423.7,5.02904271]
[1735528547020,0.29272,3423.9,3423.7,5.02904271]
[1735528547416,0.29266,3424.6,3423.7,5.02904271]
[1735528547616,11.00167519,3424.7,3423.7,3.2078]
[1735528547820,0.29272,3423.9,3423.7,3.2078]
[1735528548218,6.00167519,3424.7,3423.7,3.2078]
[1735528548418,0.29272,3423.9,3423.7,3.2078]
[1735528548713,0.29273,3423.8,3423.7,3.2078]
[1735528551625,0.29276,3423.5,3423.3,3.2078]
[1735528551825,0.29276,3423.4,3423.3,3.2078]
[1735528552018,0.29278,3423.3,3422.9,0.2928]
[1735528552326,3.52567519,3423.9,3422.8,3.2078]
[1735528552327,0.2928,3423.0,3422.8,3.2078]
[1735528552523,0.29279,3423.1,3422.8,5.02904271]
[1735528552823,7.79387519,3423.9,3422.8,5.32185271]
[1735528553025,0.29278,3423.2,3422.8,5.32185271]
[1735528553225,7.79387519,3423.9,3422.8,5.02904271]
[1735528553425,0.29279,3423.1,3422.8,5.02904271]
[1735528553626,7.79387519,3423.9,3422.8,5.02904271]
[1735528553830,0.29278,3423.3,3422.9,0.2928]
[1735528554130,0.73182,3423.8,3422.8,5.02904271]
[1735528554427,0.2928,3422.9,3422.8,5.02904271]
[1735528555323,3.5005,3424.1,3423.8,0.29272]
[1735528555524,0.16204674,3424.9,3423.7,6.00167519]
[1735528555727,0.5262,3425.0,3424.8,3.2078]
[1735528556026,0.5202,3425.3,3424.8,3.2078]
[1735528556220,1.242,3425.7,3425.2,3.2078]
[1735528556424,0.2926,3425.3,3425.2,3.2078]
[1735528564026,0.29263,3424.9,3424.8,3.2078]
[1735528564924,3.2078,3425.2,3424.4,3.2078]
[1735528565129,0.29267,3424.5,3424.4,3.2078]
[1735528565432,0.29267,3424.5,3424.4,5.02904271]
[1735528565931,0.29267,3424.5,3424.4,3.2078]
[1735528567826,0.2927,3424.1,3424.0,4.53259003]
[1735528568729,1.7651,3424.5,3423.8,3.2078]
[1735528568924,0.29272,3423.9,3423.8,3.2078]
[1735528570034,0.73171,3424.4,3423.4,3.2078]
[1735528570035,0.29275,3423.5,3423.4,3.2078]
[1735528573028,0.29275,3423.5,3422.8,4.53259003]
[1735528573029,0.29279,3423.1,3423.0,3.2078]
[1735528573733,0.2928,3422.9,3422.8,4.53259003]
[1735528573933,0.2928,3422.9,3422.8,1.82124271]
[1735528575035,0.29282,3422.7,3422.6,3.2078]
[1735528575232,0.29282,3422.7,3422.6,5.02904271]
[1735528576730,0.29282,3422.7,3422.6,5.02714648]
[1735528577736,0.29282,3422.7,3422.6,3.20590377]
[1735528580137,0.5217,3423.0,3421.9,0.29289]
[1735528580339,0.73203,3422.9,3422.5,3.2078]
[1735528580634,0.29283,3422.6,3422.5,3.2078]
[1735528581136,0.29283,3422.6,3422.5,5.02904271]
[1735528581433,0.2928,3423.0,3422.5,5.02904271]
[1735528581625,0.29279,3423.1,3422.8,0.29281]
[1735528582029,1.0924,3424.0,3423.0,3.2078]
[1735528582234,1.0924,3424.0,3423.3,3.2078]
[1735528582435,0.29276,3423.4,3423.3,5.02904271]
[1735528587431,0.29276,3423.4,3423.3,3.2078]
[1735528597155,0.29276,3423.4,3423.3,5.02904271]
[1735528597355,0.7318,3423.9,3423.3,5.02904271]
[1735528597658,0.29276,3423.4,3423.3,5.02904271]
[1735528600162,0.29276,3423.4,3423.3,1.82124271]
[1735528600460,0.29276,3423.4,3423.3,5.02904271]
[1735528604163,0.29275,3423.6,3423.3,5.02904271]
[1735528604365,1.0924,3424.0,3423.3,5.02904271]
[1735528604673,0.29274,3423.7,3423.4,0.29276]
[1735528604969,0.5364,3424.0,3423.4,0.29276]
[1735528605171,0.29275,3423.6,3423.4,1.82124271]
[1735528605672,0.29275,3423.6,3423.4,2.11400271]
[1735528606770,0.29275,3423.5,3423.4,1.82124271]
[1735528607374,0.29276,3423.4,3423.3,3.2078]
[1735528607672,0.29276,3423.4,3423.3,5.02904271]
[1735528608668,0.29276,3423.4,3423.3,3.2078]
[1735528611078,0.29281,3422.8,3422.7,3.2078]
[1735528611475,0.29281,3422.8,3422.7,5.02904271]
[1735528611672,0.29281,3422.8,3422.4,7.11322415]
[1735528611673,5.54268277,3423.1,3422.4,4.53259003]
[1735528611877,0.29284,3422.5,3422.4,4.53259003]
[1735528613084,0.29285,3422.4,3422.3,3.2078]
[1735528613482,0.29285,3422.3,3422.2,4.53259003]
[1735528614080,1.1018,3422.6,3422.1,4.53259003]
[1735528614280,0.29286,3422.2,3422.1,4.53259003]
[1735528615683,1.1018,3422.6,3422.0,4.53259003]
[1735528615883,0.29287,3422.1,3422.0,4.53259003]
[1735528616086,0.29287,3422.1,3422.0,6.35383274]
[1735528616386,0.29287,3422.1,3422.0,4.53259003]
[1735528617085,3.06699277,3422.5,3421.9,3.2078]
[1735528617086,2.33488277,3422.5,3421.9,3.2078]
[1735528617386,0.29288,3422.0,3421.9,3.2078]
[1735528622291,0.73214,3422.3,3421.9,3.2078]
[1735528622884,0.29288,3422.0,3421.9,3.2078]
[1735528623079,0.29291,3421.6,3421.4,4.82552003]
[1735528623278,0.29291,3421.6,3421.5,3.2078]
[1735528623789,0.29291,3421.6,3421.5,5.02904271]
[1735528623981,0.73214,3422.3,3421.5,5.02904271]
[1735528624181,0.29288,3422.0,3421.9,3.2078]
[1735528632790,0.29291,3421.7,3421.6,3.2078]
[1735528633287,0.29291,3421.7,3421.6,5.02904271]
[1735528634893,2.33488277,3422.5,3421.6,5.02904271]
[1735528635187,0.29291,3421.7,3421.6,5.02904271]
[1735528639094,0.29291,3421.7,3421.6,1.82124271]
[1735528641686,0.29291,3421.7,3421.2,4.299]
[1735528641687,0.29294,3421.3,3421.2,4.299]
[1735528641891,0.29294,3421.3,3421.2,6.12024271]
[1735528642194,0.29294,3421.3,3421.2,6.41319271]
[1735528642493,0.29294,3421.3,3421.2,6.12024271]
[1735528644593,0.29294,3421.3,3421.2,5.59454271]
[1735528644898,0.29294,3421.3,3421.2,5.02904271]
[1735528657703,3.2078,3421.9,3421.2,7.36392548]
[1735528657906,4.6237,3422.3,3421.6,5.54268277]
[1735528658098,4.6237,3422.3,3421.8,0.29289]
[1735528658302,4.6237,3422.3,3421.2,5.99333927]
[1735528658303,0.29294,3421.3,3421.2,5.99333927]
[1735528658501,5.83562277,3421.3,3421.2,5.99333927]
[1735528659104,0.29297,3421.0,3420.9,4.58004188]
[1735528659801,5.54268277,3421.3,3420.5,4.58004188]
[1735528659999,3.2078,3420.9,3420.5,4.58004188]
[1735528660195,3.50078,3420.9,3420.5,6.40128459]
[1735528660396,3.50078,3420.9,3420.7,0.29299]
[1735528660798,0.29297,3421.0,3420.8,3.50078]
[1735528661005,1.86,3421.4,3420.8,8.08082188]
[1735528661205,0.29297,3421.0,3420.8,9.90206459]
[1735528661405,0.29297,3420.9,3420.8,9.60908459]
[1735528661905,0.29297,3420.9,3420.8,5.02904271]
[1735528663706,0.29297,3420.9,3420.8,1.82124271]
[1735528663899,0.29298,3420.8,3420.7,4.57956398]